fUSD/lending_fUSD_20251117
["ID","MTS","AMOUNT","RATE_DAILY","PERIOD"]
[394242844,1763404180625,-500.0,0.000488,120]
[394242845,1763404180660,-500.0,0.000488,120]
[394242846,1763404180695,-500.0,0.000488,120]
[394242847,1763404180729,-500.0,0.000488,120]
[394242848,1763404180764,-500.0,0.000488,120]
[394242849,1763404180798,-500.0,0.000488,120]
[394242850,1763404180832,-500.0,0.000488,120]
[394242851,1763404180868,-500.0,0.000488,120]
[394242852,1763404180903,-500.0,0.000488,120]
[394242853,1763404180935,-500.0,0.000488,120]
[394242854,1763404180968,-500.0,0.000488,120]
[394242855,1763404180998,-500.0,0.000488,120]
[394242856,1763404181032,-500.0,0.000488,120]
[394242857,1763404181063,-500.0,0.000488,120]
[394242858,1763404181095,-500.0,0.000488,120]
[394242859,1763404181127,-500.0,0.000488,120]
[394242860,1763404181367,-500.0,0.000488,120]
[394242861,1763404181403,-500.0,0.000488,120]
[394242862,1763404181435,-500.0,0.000488,120]
[394242863,1763404181469,-500.0,0.000488,120]
[394242864,1763404181503,-500.0,0.000488,120]
[394242865,1763404181538,-689.0,0.000488,120]
[394242866,1763404181572,-500.0,0.000488,120]
[394242867,1763404181606,-500.0,0.000488,120]
[394242868,1763404181640,-500.0,0.000488,120]
[394242869,1763404181674,-500.0,0.000488,120]
[394242870,1763404181708,-500.0,0.000488,120]
[394242871,1763404181742,-500.0,0.000488,120]
[394242872,1763404181780,-500.0,0.000488,120]
[394242873,1763404181816,-500.0,0.000488,120]
[394242874,1763404181849,-500.0,0.000488,120]
[394242875,1763404181883,-500.0,0.000488,120]
[394242876,1763404181918,-500.0,0.000488,120]
[394242877,1763404181952,-500.0,0.000488,120]
[394242878,1763404181984,-500.0,0.000488,120]
[394242879,1763404182017,-500.0,0.000488,120]
[394242880,1763404182047,-500.0,0.000488,120]
[394242881,1763404182079,-500.0,0.000488,120]
[394242882,1763404182111,-500.0,0.000488,120]
[394242883,1763404182143,-500.0,0.000488,120]
[394242884,1763404182178,-500.0,0.000488,120]
[394242885,1763404182214,-500.0,0.000488,120]
[394242886,1763404182253,-500.0,0.000488,120]
[394242887,1763404182291,-500.0,0.000488,120]
[394242888,1763404182328,-500.0,0.000488,120]
[394242889,1763404182365,-500.0,0.000488,120]
[394242890,1763404182401,-500.0,0.000488,120]
[394242891,1763404182436,-500.0,0.000488,120]
[394242892,1763404182472,-500.0,0.000488,120]
[394242893,1763404182507,-500.0,0.000488,120]
[394242894,1763404182543,-500.0,0.000488,120]
[394242895,1763404182579,-500.0,0.000488,120]
[394242896,1763404182619,-500.0,0.000488,120]
[394242897,1763404182659,-500.0,0.000488,120]
[394242898,1763404182697,-500.0,0.000488,120]
[394242899,1763404182736,-500.0,0.000488,120]
[394242900,1763404182773,-500.0,0.000488,120]
[394242901,1763404182811,-500.0,0.000488,120]
[394242902,1763404182847,-500.0,0.000488,120]
[394242903,1763404182884,-500.0,0.000488,120]
[394242904,1763404182921,-500.0,0.000488,120]
[394242905,1763404182956,-500.0,0.000488,120]
[394242906,1763404182993,-500.0,0.000488,120]
[394242907,1763404183027,-500.0,0.000488,120]
[394242908,1763404183061,-500.0,0.000488,120]
[394242909,1763404183094,-500.0,0.000488,120]
[394242910,1763404183131,-500.0,0.000488,120]
[394242911,1763404183168,-500.0,0.000488,120]
[394242912,1763404183205,-500.0,0.000488,120]
[394242913,1763404183241,-500.0,0.000488,120]
[394242914,1763404183276,-500.0,0.000488,120]
[394242915,1763404183312,-500.0,0.000488,120]
[394242916,1763404183347,-500.0,0.000488,120]
[394242917,1763404183381,-500.0,0.000488,120]
[394242918,1763404183414,-500.0,0.000488,120]
[394242919,1763404183447,-500.0,0.000488,120]
[394242920,1763404183480,-500.0,0.000488,120]
[394242921,1763404183513,-500.0,0.000488,120]
[394242922,1763404183544,-500.0,0.000488,120]
[394242923,1763404183578,-500.0,0.000488,120]
[394242924,1763404183610,-500.0,0.000488,120]
[394242925,1763404183650,-500.0,0.000488,120]
[394242926,1763404183688,-500.0,0.000488,120]
[394242927,1763404183723,-500.0,0.000488,120]
[394242928,1763404183758,-500.0,0.000488,120]
[394242929,1763404183791,-500.0,0.000488,120]
[394242930,1763404183825,-500.0,0.000488,120]
[394242931,1763404183858,-500.0,0.000488,120]
[394242932,1763404183891,-500.0,0.000488,120]
[394242933,1763404183924,-680.0,0.000488,120]
[394242934,1763404183956,-500.0,0.000488,120]
[394242935,1763404183993,-500.0,0.000488,120]
[394242936,1763404184025,-500.0,0.000488,120]
[394242937,1763404184058,-500.0,0.000488,120]
[394242938,1763404184089,-500.0,0.000488,120]
[394242939,1763404184121,-500.0,0.000488,120]
[394242940,1763404184154,-500.0,0.000488,120]
[394242941,1763404184185,-500.0,0.000488,120]
[394242942,1763404184217,-500.0,0.000488,120]
[394242943,1763404184251,-500.0,0.000488,120]
[394242944,1763404184287,-500.0,0.000488,120]
[394242945,1763404184319,-500.0,0.000488,120]
[394242946,1763404184351,-500.0,0.000488,120]
[394242947,1763404184381,-500.0,0.000488,120]
[394242948,1763404184413,-500.0,0.000488,120]
[394242949,1763404184443,-500.0,0.000488,120]
[394242950,1763404184474,-500.0,0.000488,120]
[394242951,1763404184512,-500.0,0.000488,120]
[394242952,1763404184546,-500.0,0.000488,120]
[394242953,1763404184579,-500.0,0.000488,120]
[394242954,1763404184610,-500.0,0.000488,120]
[394242955,1763404184642,-500.0,0.000488,120]
[394242956,1763404184672,-500.0,0.000488,120]
[394242957,1763404184702,-500.0,0.000488,120]
[394242958,1763404184733,-500.0,0.000488,120]
[394242959,1763404184765,-500.0,0.000488,120]
[394242960,1763404184796,-500.0,0.000488,120]
[394242961,1763404184828,-500.0,0.000488,120]
[394242962,1763404184865,-500.0,0.000488,120]
[394242963,1763404184902,-500.0,0.000488,120]
[394242964,1763404185118,-500.0,0.000488,120]
[394242965,1763404185157,-500.0,0.000488,120]
[394242966,1763404185193,-500.0,0.000488,120]
[394242967,1763404185227,-500.0,0.000488,120]
[394242968,1763404185265,-500.0,0.000488,120]
[394242969,1763404185300,-500.0,0.000488,120]
[394242970,1763404185332,-500.0,0.000488,120]
[394242971,1763404185364,-500.0,0.000488,120]
[394242972,1763404185396,-500.0,0.000488,120]
[394242973,1763404185428,-500.0,0.000488,120]
[394242974,1763404185462,-500.0,0.000488,120]
[394242975,1763404185496,-500.0,0.000488,120]
[394242976,1763404185532,-500.0,0.000488,120]
[394242977,1763404185563,-500.0,0.000488,120]
[394242978,1763404185595,-500.0,0.000488,120]
[394242979,1763404185626,-500.0,0.000488,120]
[394242980,1763404185662,-500.0,0.000488,120]
[394242981,1763404185696,-500.0,0.000488,120]
[394242982,1763404185727,-500.0,0.000488,120]
[394242983,1763404185763,-500.0,0.000488,120]
[394242984,1763404185795,-500.0,0.000488,120]
[394242985,1763404185829,-500.0,0.000488,120]
[394242986,1763404185865,-500.0,0.000488,120]
[394242987,1763404185899,-500.0,0.000488,120]
[394242988,1763404185932,-500.0,0.000488,120]
[394242989,1763404185963,-500.0,0.000488,120]
[394242990,1763404185994,-500.0,0.000488,120]
[394242991,1763404186027,-500.0,0.000488,120]
[394242992,1763404186058,-500.0,0.000488,120]
[394242993,1763404186090,-500.0,0.000488,120]
[394242994,1763404186122,-500.0,0.000488,120]
[394242995,1763404186155,-500.0,0.000488,120]
[394242996,1763404186188,-500.0,0.000488,120]
[394242997,1763404186220,-500.0,0.000488,120]
[394242998,1763404186254,-500.0,0.000488,120]
[394242999,1763404186287,-500.0,0.000488,120]
[394243000,1763404186322,-626.0,0.000488,120]
[394243001,1763404186360,-500.0,0.000488,120]
[394243002,1763404186394,-500.0,0.000488,120]
[394243003,1763404186427,-500.0,0.000488,120]
[394243004,1763404186459,-500.0,0.000488,120]
[394243005,1763404186491,-500.0,0.000488,120]
[394243006,1763404186525,-500.0,0.000488,120]
[394243007,1763404186557,-500.0,0.000488,120]
[394243008,1763404186589,-500.0,0.000488,120]
[394243009,1763404186623,-500.0,0.000488,120]
[394243010,1763404186660,-500.0,0.000488,120]
[394243011,1763404186693,-500.0,0.000488,120]
[394243012,1763404186726,-500.0,0.000488,120]
[394243013,1763404186764,-500.0,0.000488,120]
[394243014,1763404186799,-500.0,0.000488,120]
[394243015,1763404186831,-500.0,0.000488,120]
[394243016,1763404186863,-500.0,0.000488,120]
[394243017,1763404186895,-500.0,0.000488,120]
[394243018,1763404186928,-500.0,0.000488,120]
[394243019,1763404186961,-500.0,0.000488,120]
[394243020,1763404186992,-500.0,0.000488,120]
[394243021,1763404187024,-500.0,0.000488,120]
[394243022,1763404187058,-500.0,0.000488,120]
[394243023,1763404187091,-745.0,0.000488,120]
[394243024,1763404187126,-579.37,0.00048863,30]
[394243025,1763404187160,-579.37,0.00048863,30]
[394243026,1763404187191,-1210.65582723,0.00048875,60]
[394243027,1763404187224,-506.0,0.0004888,120]
[394243028,1763404187255,-437.4082466,0.000489,120]
[394243029,1763404187289,-600.0,0.000489,120]
[394243030,1763404187322,-368.0,0.000489,120]
[394243031,1763404187358,-213.0,0.0004899,30]
[394243032,1763404187390,-15000.0,0.00049,120]
[394243033,1763404187422,-1130.49530012,0.00049,120]
[394243034,1763404187455,-281.22421518,0.00049,30]
[394243035,1763404187488,-220.47282708,0.00049,120]
[394243036,1763404187522,-430.21198068,0.00049,120]
[394243037,1763404187554,-50000.0,0.00049,30]
[394243038,1763404187589,-4000.0,0.00049,30]
[394243039,1763404187623,-151.0,0.00049,120]
[394243040,1763404187657,-1761.67339367,0.00049,120]
[394243041,1763404187692,-1816.90219,0.00049,120]
[394243042,1763404187726,-1010.52551,0.00049,120]
[394243043,1763404187761,-1011.480151,0.00049,120]
[394243044,1763404187799,-2930.0,0.00049,120]
[394243045,1763404187843,-241.35891419,0.00049,120]
[394243046,1763404187893,-222.59,0.00049,30]
[394243047,1763404187941,-419.81446652,0.00049,120]
[394243048,1763404187985,-41495.19,0.00049,120]
[394243049,1763404188031,-997000.0,0.00049,120]
[394243050,1763404188072,-42233.89221244,0.00049,120]
[394243051,1763404188114,-385.0,0.0004901,120]
[394243052,1763404188152,-586.35,0.000491,120]
[394243053,1763404188189,-150.0,0.00049123,120]
[394243054,1763404188227,-579.37,0.00049137,30]
[394243055,1763404188263,-579.37,0.00049137,30]
[394243056,1763404188298,-150.0,0.00049164,120]
[394243057,1763404188334,-5000.0,0.000492,120]
[394243058,1763404188375,-380.0,0.000493,120]
[394243059,1763404188411,-390.0,0.000493,120]
[394243060,1763404188449,-393.27599897,0.00049315,120]
[394243061,1763404188485,-665.86,0.00049315,120]
[394243062,1763404188518,-665.86,0.00049315,120]
[394243063,1763404188552,-665.86,0.00049315,120]
[394243064,1763404188585,-665.86,0.00049315,120]
[394243065,1763404188619,-665.86,0.00049315,120]
[394243066,1763404188661,-665.86,0.00049315,120]
[394243067,1763404188713,-665.86,0.00049315,120]
[394243068,1763404188967,-665.86,0.00049315,120]
[394243069,1763404189000,-665.86,0.00049315,120]
[394243070,1763404189034,-665.86,0.00049315,120]
[394243071,1763404189072,-665.86,0.00049315,120]
[394243072,1763404189107,-665.86,0.00049315,120]
[394243073,1763404189141,-665.86,0.00049315,120]
[394243074,1763404189175,-665.86,0.00049315,120]
[394243075,1763404189209,-665.86,0.00049315,120]
[394243076,1763404189242,-665.86,0.00049315,120]
[394243077,1763404189277,-665.86,0.00049315,120]
[394243078,1763404189312,-665.86,0.00049315,120]
[394243079,1763404189347,-665.86,0.00049315,120]
[394243080,1763404189384,-665.86,0.00049315,120]
[394243081,1763404189418,-665.86,0.00049315,120]
[394243082,1763404189451,-665.86,0.00049315,120]
[394243083,1763404189484,-665.86,0.00049315,120]
[394243084,1763404189516,-666.09296538,0.00049315,120]
[394243085,1763404189552,-500.0,0.00049315,120]
[394243086,1763404189585,-500.0,0.00049315,120]
[394243087,1763404189623,-500.0,0.00049315,120]
[394243088,1763404189660,-500.0,0.00049315,120]
[394243089,1763404189694,-500.0,0.00049315,120]
[394243090,1763404189728,-500.0,0.00049315,120]
[394243091,1763404189762,-500.0,0.00049315,120]
[394243092,1763404189796,-500.0,0.00049315,120]
[394243093,1763404189831,-638.48928224,0.00049315,120]
[394243094,1763404189867,-201.0,0.000494,120]
[394243095,1763404189904,-1844.48272455,0.000494,120]
[394243096,1763404189939,-579.37,0.00049411,60]
[394243097,1763404189972,-579.37,0.00049411,60]
[394243098,1763404190005,-254.77219229,0.000495,120]
[394243099,1763404190037,-200.0,0.000495,120]
[394243100,1763404190069,-153.0,0.000495,120]
[394243101,1763404190103,-151.0,0.000496,120]
[394243102,1763404190137,-579.37,0.00049685,60]
[394243103,1763404190171,-579.37,0.00049685,60]
[394243104,1763404190209,-370.76,0.000497,30]
[394243105,1763404190244,-202.41,0.000497,30]
[394243106,1763404190279,-150.0,0.00049761,120]
[394243107,1763404190313,-182.98720738,0.000498,30]
[394243108,1763404190349,-150.0,0.00049819,120]
[394243109,1763404190386,-400.0,0.00049876,31]
[394243110,1763404190427,-448.68064432,0.00049885,120]
[394243111,1763404190463,-4000.0,0.000499,120]
[394243112,1763404190499,-1709.15614,0.000499,120]
[394243113,1763404190538,-2048.214124,0.000499,120]
[394243114,1763404190571,-1000.0,0.00049948,120]
[394243115,1763404190607,-579.37,0.00049959,60]
[394243116,1763404190644,-579.37,0.00049959,60]
[394243117,1763404190680,-168.4388668,0.00049987,80]
[394243118,1763404190716,-420.2891261,0.00049987,120]
[394243119,1763404190753,-322.67467035,0.00049999,120]
[394243120,1763404190790,-500.0,0.00049999,120]
[394243121,1763404190832,-422.39204898,0.00049999,120]
[394243122,1763404190867,-428.54198975,0.00049999,120]
[394243123,1763404190904,-500.0,0.00049999,120]
[394243124,1763404190941,-390.01406981,0.00049999,120]
[394243125,1763404190980,-50000.0,0.0005,50]
[394243126,1763404191014,-225.15400165,0.0005,120]
[394243127,1763404191046,-165.16189594,0.0005,120]
[394243128,1763404191078,-616.09980672,0.0005,30]
[394243129,1763404191109,-200.0,0.0005,120]
[394243130,1763404191144,-345.0,0.0005,120]
[394243131,1763404191176,-21901.57,0.0005,120]
[394243132,1763404191213,-1000000.0,0.0005,120]
[394243133,1763404191246,-500.0,0.0005,120]
[394243134,1763404191278,-648.66012936,0.0005,120]
[394243135,1763404191310,-507.9,0.0005,120]
[394243136,1763404191345,-902762.52809878,0.0005,120]
[394243137,1763404201235,300.0,0.00017998,2]
[394243138,1763404201397,129.54756849,0.00017998,2]
[394243139,1763404201420,1070.45243151,0.00017998,2]
[394243140,1763404201478,300.0,0.00017998,2]
[394243141,1763404201769,300.0,0.00017998,2]
[394243142,1763404204023,300.0,0.00017998,2]
[394243143,1763404208208,177.25,0.0001799,2]
[394243144,1763404208423,177.25,0.0001799,2]
[394243145,1763404210556,163.59,0.0001799,2]
[394243146,1763404210768,163.59,0.0001799,2]
[394243147,1763404214103,-717.30804717,0.00017999,2]
[394243148,1763404214133,-1005.09466175,0.00017999,2]
[394243149,1763404214163,-297.16137531,0.00017999,2]
[394243150,1763404214192,-500.0,0.00017999,2]
[394243407,1763404232127,-157.0359651,0.00017999,2]
[394243408,1763404232137,-500.0,0.00017999,2]
[394243410,1763404232149,-500.0,0.00017999,2]
[394243412,1763404232160,-500.0,0.00017999,2]
[394243413,1763404232169,-500.0,0.00017999,2]
[394243414,1763404232180,-500.0,0.00017999,2]
[394243415,1763404232190,-404.07203317,0.00017999,2]
[394243416,1763404232199,-500.0,0.00017999,2]
[394243417,1763404232208,-500.0,0.00017999,2]
[394243418,1763404232218,-500.0,0.00017999,2]
[394243419,1763404232227,-500.0,0.00017999,2]
[394243420,1763404232237,-230.31668166,0.00017999,2]
[394243421,1763404232247,-553.04656163,0.00017999,2]
[394243422,1763404232256,-413.32368592,0.00017999,2]
[394243423,1763404232265,-527.7304776,0.00017999,2]
[394243424,1763404232274,-500.0,0.00017999,2]
[394243425,1763404232283,-500.0,0.00017999,2]
[394243426,1763404232293,-500.0,0.00017999,2]
[394243427,1763404232302,-500.0,0.00017999,2]
[394243428,1763404232311,-500.0,0.00017999,2]
[394243429,1763404232324,-481.00030646,0.00017999,2]
[394243430,1763404232333,-500.0,0.00017999,2]
[394243431,1763404232342,-500.0,0.00017999,2]
[394243432,1763404232352,-500.0,0.00017999,2]
[394243433,1763404232361,-500.0,0.00017999,2]
[394243434,1763404232370,-500.0,0.00017999,2]
[394243435,1763404232380,-500.0,0.00017999,2]
[394243436,1763404232391,-500.0,0.00017999,2]
[394243437,1763404232400,-500.0,0.00017999,2]
[394243438,1763404232409,-500.0,0.00017999,2]
[394243439,1763404232419,-500.0,0.00017999,2]
[394243440,1763404232429,-500.0,0.00017999,2]
[394243441,1763404232438,-500.0,0.00017999,2]
[394243442,1763404232448,-500.0,0.00017999,2]
[394243443,1763404232457,-500.0,0.00017999,2]
[394243444,1763404232467,-500.0,0.00017999,2]
[394243445,1763404232478,-500.0,0.00017999,2]
[394243446,1763404232488,-500.0,0.00017999,2]
[394243447,1763404232497,-500.0,0.00017999,2]
[394243448,1763404232507,-500.0,0.00017999,2]
[394243449,1763404232520,-500.0,0.00017999,2]
[394243450,1763404232529,-500.0,0.00017999,2]
[394243451,1763404232539,-500.0,0.00017999,2]
[394243452,1763404232549,-500.0,0.00017999,2]
[394243453,1763404232559,-500.0,0.00017999,2]
[394243454,1763404232569,-500.0,0.00017999,2]
[394243455,1763404232580,-336.64829851,0.00017999,2]
[394243456,1763404232591,-370.00125202,0.00017999,2]
[394243457,1763404232603,-129.99874798,0.00017999,2]
[394243458,1763404232614,-500.0,0.00017999,2]
[394243459,1763404232624,-500.0,0.00017999,2]
[394243460,1763404232635,-500.0,0.00017999,2]
[394243461,1763404232648,-500.0,0.00017999,2]
[394243462,1763404232658,-199.12959069,0.00017999,2]
[394243463,1763404232668,-500.0,0.00017999,2]
[394243464,1763404232678,-157.33742533,0.00017999,2]
[394243465,1763404232690,-342.66257467,0.00017999,2]
[394243466,1763404232700,-54.33742535,0.00017999,2]
[394243467,1763404232712,-445.66257465,0.00017999,2]
[394243468,1763404232727,-19.45922535,0.00017999,2]
[394243469,1763404232739,-480.54077465,0.00017999,2]
[394243470,1763404232749,-202.49325871,0.00017999,2]
[394243471,1763404232759,-500.0,0.00017999,2]
[394243472,1763404232772,-500.70471959,0.00017999,2]
[394243473,1763404232783,-500.0,0.00017999,2]
[394243474,1763404232792,-500.0,0.00017999,2]
[394243475,1763404232802,-500.0,0.00017999,2]
[394243476,1763404232812,-500.0,0.00017999,2]
[394243477,1763404232822,-500.0,0.00017999,2]
[394243478,1763404232832,-500.0,0.00017999,2]
[394243479,1763404232842,-500.0,0.00017999,2]
[394243480,1763404232852,-500.0,0.00017999,2]
[394243481,1763404232863,-500.0,0.00017999,2]
[394243482,1763404232873,-196.38324022,0.00017999,2]
[394243483,1763404232882,-500.0,0.00017999,2]
[394243484,1763404232893,-361.39436491,0.00017999,2]
[394243485,1763404232902,-500.0,0.00017999,2]
[394243486,1763404232912,-500.0,0.00017999,2]
[394243487,1763404232921,-500.0,0.00017999,2]
[394243488,1763404232931,-500.0,0.00017999,2]
[394243489,1763404232943,-500.0,0.00017999,2]
[394243490,1763404232952,-387.3906856,0.00017999,2]
[394243491,1763404232961,-500.0,0.00017999,2]
[394243492,1763404232971,-500.0,0.00017999,2]
[394243493,1763404232981,-500.0,0.00017999,2]
[394243494,1763404232990,-500.0,0.00017999,2]
[394243495,1763404233001,-500.0,0.00017999,2]
[394243496,1763404233011,-500.0,0.00017999,2]
[394243497,1763404233020,-500.0,0.00017999,2]
[394243498,1763404233029,-500.0,0.00017999,2]
[394243499,1763404233038,-500.0,0.00017999,2]
[394243500,1763404233048,-500.0,0.00017999,2]
[394243501,1763404233057,-500.0,0.00017999,2]
[394243502,1763404233067,-500.0,0.00017999,2]
[394243503,1763404233077,-500.0,0.00017999,2]
[394243504,1763404233087,-500.0,0.00017999,2]
[394243505,1763404233097,-500.0,0.00017999,2]
[394243506,1763404233108,-500.0,0.00017999,2]
[394243507,1763404233118,-500.0,0.00017999,2]
[394243508,1763404233129,-500.0,0.00017999,2]
[394243509,1763404233143,-451.90560918,0.00017999,2]
[394243510,1763404233156,-500.0,0.00017999,2]
[394243511,1763404233167,-500.0,0.00017999,2]
[394243512,1763404233180,-500.0,0.00017999,2]
[394243513,1763404233194,-500.0,0.00017999,2]
[394243514,1763404233214,-500.0,0.00017999,2]
[394243515,1763404233227,-500.0,0.00017999,2]
[394243516,1763404233239,-500.0,0.00017999,2]
[394243517,1763404233251,-500.0,0.00017999,2]
[394243518,1763404233262,-500.0,0.00017999,2]
[394243519,1763404233275,-250.0,0.00017999,2]
[394243520,1763404233287,-6487.4292207,0.00018,2]
[394243533,1763404238087,-9300.0,0.00018,2]
[394243534,1763404238359,-1193.8,0.00018,2]
[394243535,1763404238416,-371.86527032,0.00018,2]
[394243536,1763404238429,-1103.87488642,0.00018,2]
[394243537,1763404238529,-1082.68320992,0.00018,2]
[394243538,1763404238541,-1861.86,0.00018,2]
[394243539,1763404238584,-25067.5315,0.00018,2]
[394243540,1763404238643,-895598.970086,0.00018,2]
[394243543,1763404238656,-280.33751895,0.00018321,2]
[394243544,1763404238666,-2683.39468523,0.00018421,2]
[394243546,1763404238675,-1000.0,0.00018521,2]
[394243547,1763404238684,-250.0,0.000187,2]
[394243548,1763404238694,-174.33572379,0.00019011,2]
[394243549,1763404238704,-408006.863736,0.00019021,2]
[394243550,1763404238713,-2296.3354727,0.00019021,2]
[394243551,1763404238726,-1369.33093842,0.00019068,2]
[394243552,1763404238738,-500.0,0.00019073,2]
[394243553,1763404238748,-500.0,0.00019073,2]
[394243554,1763404238757,-1000.0,0.00019621,2]
[394243555,1763404238767,-1000.0,0.00019621,2]
[394243556,1763404238780,-400.0,0.00019638,2]
[394243557,1763404238789,-420.0,0.00019638,2]
[394243559,1763404238800,-1680.0,0.00019734,2]
[394243561,1763404238811,-250.0,0.00019799,2]
[394243563,1763404238820,-5041.75253712,0.0002,4]
[394243565,1763404238830,-1500.0,0.00020168,2]
[394243567,1763404238839,-151.379112,0.000205,2]
[394243569,1763404238850,-300.13979988,0.00020716,2]
[394243571,1763404238859,-2683.39468517,0.00020967,2]
[394243573,1763404238869,-2296.3354727,0.00020978,2]
[394243575,1763404238879,-553.0,0.00021427,2]
[394243577,1763404238888,-2351.0,0.00021638,2]
[394243578,1763404238898,-151.0,0.00022111,2]
[394243580,1763404238907,-91038.636847,0.00022114,2]
[394243582,1763404238916,-500.92231122,0.00022173,2]
[394243584,1763404238926,-500.0,0.00022173,2]
[394243586,1763404238936,-500.0,0.00022173,2]
[394243588,1763404238945,-500.0,0.00022173,2]
[394243590,1763404238955,-500.0,0.00022173,2]
[394243592,1763404238964,-499.8492798,0.00022173,2]
[394243594,1763404238974,-305.52529526,0.00022173,2]
[394243596,1763404238983,-500.0,0.00022173,2]
[394243598,1763404238993,-480.5565502,0.00022173,2]
[394243600,1763404239003,-200.0,0.00022173,2]
[394243602,1763404239012,-161.59,0.0002258,2]
[394243604,1763404239021,-1000.0,0.00022721,2]
[394243606,1763404239030,-363.83812644,0.00022721,2]
[394243607,1763404239039,-500.0,0.00022721,2]
[394243609,1763404239049,-1000.0,0.00022721,2]
[394243612,1763404239059,-1000.0,0.00022721,2]
[394243614,1763404239069,-20313.4656193,0.00022804,2]
[394243616,1763404239078,-400.0,0.00022858,2]
[394243618,1763404239088,-2296.3354727,0.00022934,2]
[394243620,1763404239098,-500.0,0.00023268,2]
[394243622,1763404239108,-1500.0,0.00023268,2]
[394243624,1763404239118,-1500.0,0.00023268,2]
[394243626,1763404239128,-2683.39468517,0.00023513,2]
[394243628,1763404239138,-600.0,0.00023542,2]
[394243630,1763404239149,-3292.0,0.00023726,2]
[394243632,1763404239160,-1810.92938163,0.00023816,2]
[394243634,1763404239169,-2000.0,0.00023816,2]
[394243636,1763404239178,-800.0,0.00024227,2]
[394243638,1763404239188,-528.43500418,0.00024364,2]
[394243640,1763404239198,-500.0,0.00024773,2]
[394243642,1763404239207,-500.96125476,0.00024773,2]
[394243644,1763404239217,-501.16937227,0.00024773,2]
[394243646,1763404239226,-506.20609274,0.00024773,2]
[394243648,1763404239239,-500.46051516,0.00024773,2]
[394243650,1763404239249,-527.27825092,0.00024773,2]
[394243652,1763404239259,-151.0,0.00024797,7]
[394243654,1763404239270,-483788.995572,0.000248,3]
[394243656,1763404239281,-2296.3354727,0.00024891,2]
[394243658,1763404239292,-595.72031564,0.00024899,2]
[394243660,1763404239303,-181.02516385,0.00024899,2]
[394243662,1763404239314,-183.66085275,0.00024899,2]
[394243664,1763404239325,-340047.255854,0.000249,3]
[394243666,1763404239336,-1000.0,0.00024912,2]
[394243668,1763404239347,-500.0,0.00025321,2]
[394243671,1763404239357,-1200.0,0.00025597,2]
[394243673,1763404239368,-1950.0,0.00026015,2]
[394243675,1763404239377,-2683.39468517,0.00026059,2]